Cogmind - Beta 12 @@@ ROGUE MODE // 2023.04.19 @ 21:41:02 Player: MoonDog Result: Self-destructed Performance ------------- Evolutions (1) 500 Regions Visited (3) 600 Robots Destroyed (23) 115 Value Destroyed (434) 434 Prototype IDs (1) 20 Alien Tech Used (0) 0 Bonus (0) 0 TOTAL SCORE: 1669 Bonus ------- None Cogmind --------- Core Integrity 188/400 Matter 163/300 Energy 250/250 System Corruption 0% Temperature Cool (15) Movement Walking (120) Location -9/Storage Parts ------- > --- POWER (1) -------- Ion Engine > --- PROPULSION (3) --- Improved Aluminum Leg > --- UTILITY (3) ------ Weight Redist. System Visual Processing Unit ECM Suite > --- WEAPON (2) ------- Improved Assault Rifle Mini Grenade Launcher > --- INVENTORY (5) ---- ECM Suite Mini Grenade Launcher Peak State ------------ > --- POWER ------------ Ion Engine > --- PROPULSION ------- Improved Aluminum Leg Flight Unit Flight Unit > --- UTILITY ---------- Weight Redist. System Visual Processing Unit ECM Suite > --- WEAPON ----------- Improved Assault Rifle Mini Grenade Launcher > --- INVENTORY -------- ECM Suite Mini Grenade Launcher [Rating: 15] Favorites ----------- Power Ion Engine Engine Ion Engine Propulsion Improved Aluminum Leg Leg Improved Aluminum Leg Flight Unit Flight Unit Utility ECM Suite Device ECM Suite Processor Visual Processing Unit Weapon Mini Grenade Launcher Energy Gun EM Shotgun Ballistic Gun Improved Assault Rifle Launcher Mini Grenade Launcher Build | -11 -10 -9 -9 ------- Run | Jun Mat Mat Sto Slots Evolved 2 | . . 2 . Power . | . . . . Propulsion 1 | . . 1 . Utility 1 | . . 1 . Weapon . | . . . . Parts Attached 22 | 3 14 3 2 Power 1 | . 1 . . Engine 1 | . 1 . . Core . | . . . . Reactor . | . . . . Propulsion 8 | 2 4 1 1 Treads . | . . . . Leg 5 | 2 2 . 1 Wheel . | . . . . Hover . | . . . . Flight 3 | . 2 1 . Utility 6 | . 5 1 . Device 5 | . 4 1 . Storage . | . . . . Processor 1 | . 1 . . Hackware . | . . . . Protection . | . . . . Artifact . | . . . . Weapon 7 | 1 4 1 1 Energy Gun 4 | 1 2 1 . Energy Cannon . | . . . . Ballistic Gun 1 | . . . 1 Ballistic Cannon . | . . . . Launcher 2 | . 2 . . Special Weapon . | . . . . Impact Weapon . | . . . . Slashing Weapon . | . . . . Piercing Weapon . | . . . . Special Melee Weapon . | . . . . Unidentified Prototypes 1 | . . . 1 Parts Lost 4 | . . . 4 Power . | . . . . Propulsion 3 | . . . 3 Utility . | . . . . Weapon 1 | . . . 1 Highest Loss Streak 4 | . . . 4 To Critical Strikes . | . . . . Average Slot Usage (%) 90 | . 90 87 94 Engine 12 | . 12 11 11 Leg 16 | . 23 . 3 Flight 9 | . 3 23 24 Device 21 | . 21 20 22 Processor 6 | . 4 11 11 Energy Gun 10 | . 11 9 6 Launcher 11 | . 11 11 11 Naked Turns . | . . . . Heaviest Build 12 | 2 12 11 11 Greatest Support 26 | 3 26 14 13 Greatest Overweight (x) 3 | . 1 3 1 Average Overweight (x) . | . . . . Largest Inventory Capacity 5 | 5 5 5 5 Average Capacity 5 | 5 5 5 5 Most Carried 5 | 1 5 5 3 Average Carried 3 | . 4 3 2 Final Capacity 5 | 5 5 5 5 Final Carried 5 | 1 5 3 2 Class Distribution -------------------- 92% | Mutant 7% | Scavenger-Mutant Dominant Class ---------------- Mutant | -10/Materials Mutant | -9/Materials Mutant | -9/Storage Resources | -11 -10 -9 -9 ----------- Run | Jun Mat Mat Sto Matter Collected 516 | 133 168 61 154 Remotely . | . . . . Salvage Created 571 | 72 223 88 188 Parts 45 | 4 23 9 9 Haulers Intercepted 2 | . 1 . 1 Recyclers Shooed . | . . . . Parts Field Recycled . | . . . . Retrieved Matter . | . . . . Parts Self-Destructed . | . . . . Prevented . | . . . . Kills | -11 -10 -9 -9 ------- Run | Jun Mat Mat Sto Combat Hostiles Destroyed 16 | . 9 4 3 Guns 4 | . . 3 1 AOE 12 | . 9 1 2 Classes Destroyed 7 | 1 5 1 . Worker 1 | . 1 . . Hauler 2 | . 1 . 1 Recycler 2 | 1 . . 1 Watcher 2 | . 2 . . Swarmer 9 | . 6 3 . Grunt 6 | . 3 . 3 Sentry 1 | . . 1 . Best Kill Streak 6 | 1 6 4 4 Combat Bots Only 6 | . 6 4 2 Max Kills in Single Turn 3 | 1 3 2 2 Gunslinging . | . . . . Exploded 3 | . 3 1 1 Melee . | . . . . Uniques/NPCs Destroyed . | . . . . Combat | -11 -10 -9 -9 -------- Run | Jun Mat Mat Sto Damage Taken 618 | . 83 85 450 Core 220 | . 8 49 163 Absorbed by Shields . | . . . . Core Remaining (%) 98 | 100 96 . . Volleys Fired 57 | 6 21 5 25 Largest 2 | 1 1 2 1 Hottest 75 | 40 45 75 45 Shots Fired 58 | 6 21 6 25 Gun 36 | 6 8 5 17 Cannon . | . . . . Launcher 22 | . 13 1 8 Special . | . . . . Kinetic 11 | . . . 11 Thermal . | . . . . Explosive 22 | . 13 1 8 Electromagnetic 25 | 6 8 5 6 Robot Hit Streak 6 | 3 4 3 6 Robot Miss Streak 3 | 2 1 1 3 Penetration Max . | . . . . Secondary Targets . | . . . . Shots Hit Robots 31 | 4 8 5 14 Core Hits 40 | 2 22 7 9 Critical Kills . | . . . . Critical Parts Destroyed . | . . . . Critical Strikes 1 | 1 . . . Corrupt 1 | 1 . . . Melee Attacks . | . . . . Impact . | . . . . Slashing . | . . . . Piercing . | . . . . Sneak Attacks . | . . . . Combat Hostiles . | . . . . Follow-up Attacks . | . . . . Damage Inflicted 1397 | 56 714 170 457 Guns 428 | 56 98 58 216 Cannons . | . . . . Explosions 969 | . 616 112 241 Melee . | . . . . Ramming . | . . . . Kinetic 115 | . . . 115 Thermal 91 | . 91 . . Explosive 878 | . 525 112 241 Electromagnetic 313 | 56 98 58 101 Impact . | . . . . Slashing . | . . . . Piercing . | . . . . Highest Corruption . | . . . . Average Corruption . | . . . . Corruption Purged . | . . . . Corruption Blocked . | . . . . Overload Shots . | . . . . Overflow Damage 41 | . 33 8 . Projectiles . | . . . . Explosions 41 | . 33 8 . Melee . | . . . . Knockbacks . | . . . . Impact . | . . . . Kinetic . | . . . . Secondary . | . . . . Self-Inflicted Damage 18 | . 18 . . Shots 2 | . 2 . . Rammed . | . . . . Targets Rammed . | . . . . Kicked . | . . . . Crushed . | . . . . Highest Temperature 46 | 15 32 19 46 Average Temperature 16 | 10 13 12 21 Received Heat Transfer 258 | . . 18 240 Siege Activations . | . . . . Robots Corrupted . | . . . . Combat Hostiles . | . . . . Parts Fried . | . . . . Impact Corruptions . | . . . . Robots Melted . | . . . . Combat Hostiles . | . . . . Parts Melted . | . . . . Heat Transferred 150 | . 150 . . Parts Sabotaged . | . . . . Parts Stolen . | . . . . Parts Stripped . | . . . . Power Chain Reactions 2 | . 2 . . Missiles Intercepted . | . . . . Alert | -11 -10 -9 -9 ------- Run | Jun Mat Mat Sto Peak Influence 381 | 5 381 288 213 Initial 121 | . 3 97 121 Average 125 | 1 116 161 174 Maximum Alert Level 1 | . 1 1 1 Low Security (%) 84 | 100 84 83 84 Level 1 15 | . 15 17 15 Level 2 . | . . . . Level 3 . | . . . . Level 4 . | . . . . Level 5 . | . . . . High Security . | . . . . Max Security . | . . . . Squads Dispatched . | . . . . Investigation . | . . . . Extermination . | . . . . Reinforcement . | . . . . Assault . | . . . . Garrison . | . . . . Intercept . | . . . . Searches Triggered . | . . . . Construction Impeded . | . . . . Haulers Reinforced . | . . . . Active Scanning Responses . | . . . . Cargo Convoy Interrupts . | . . . . Stealth | -11 -10 -9 -9 --------- Run | Jun Mat Mat Sto Distress Signals 4 | . . 2 2 Communications Jammed . | . . . . Distress Signals . | . . . . Times Spotted 30 | . 12 13 5 Peak Tracking Total 11 | . 4 11 3 Tactical Retreats 2 | . . 2 . Traps | -11 -10 -9 -9 ------- Run | Jun Mat Mat Sto Traps Triggered . | . . . . Indirectly . | . . . . Trap Hack Attempts . | . . . . Triggered . | . . . . Disarmed . | . . . . Reprogrammed . | . . . . Reused . | . . . . Traps Extracted . | . . . . Installed . | . . . . Triggered . | . . . . Machines | -11 -10 -9 -9 ---------- Run | Jun Mat Mat Sto Machines Disabled 2 | . 2 . . Max in Single Turn 1 | . 1 . . Machines Repaired . | . . . . Machines Sabotaged . | . . . . Overloaded Fab Kills . | . . . . Hacking | -11 -10 -9 -9 --------- Run | Jun Mat Mat Sto Machines Accessed 11 | . 8 2 1 Terminals 11 | . 8 2 1 Fabricators . | . . . . Repair Stations . | . . . . Recycling Units . | . . . . Scanalyzers . | . . . . Garrison Access . | . . . . Total Hacks 42 | . 25 14 3 Successful 23 | . 13 9 1 Failed 19 | . 12 5 2 Catastrophic 2 | . 1 1 . Database Lockouts . | . . . . Manual 34 | . 24 7 3 Terminals 42 | . 25 14 3 Fabricators . | . . . . Repair Stations . | . . . . Recycling Units . | . . . . Scanalyzers . | . . . . Garrison Access . | . . . . Terminal Hacks 11 | . 6 5 . Part Schematic 1 | . 1 . . Level Access Points 1 | . 1 . . Branch Access Points 1 | . . 1 . Emergency Access Points 1 | . . 1 . Terminal Index 3 | . 2 1 . Alert Level 1 | . 1 . . Surveillance Status 1 | . 1 . . Zone Layout 2 | . . 2 . Fabricator Hacks . | . . . . Repair Station Hacks . | . . . . Recycling Unit Hacks . | . . . . Scanalyzer . | . . . . Garrison Access Hacks . | . . . . Unauthorized Hacks 12 | . 7 4 1 Terminals 12 | . 7 4 1 Track 1 | . . 1 . Assimilate 1 | . . 1 . Botnet 10 | . 7 2 1 Fabricators . | . . . . Repair Stations . | . . . . Recycling Units . | . . . . Scanalyzers . | . . . . Garrison Access . | . . . . Data Cores Recovered . | . . . . Used . | . . . . Hacking Detections 10 | . 7 2 1 Full Trace Events . | . . . . Feedback Events . | . . . . Feedback Blocked . | . . . . Robot Schematics Acquired . | . . . . Robots Built . | . . . . Authchips . | . . . . Time . | . . . . Total Robot Build Rating . | . . . . Part Schematics Acquired 1 | . 1 . . Parts Built . | . . . . Authchips . | . . . . Time . | . . . . Total Part Build Rating . | . . . . Parts Repaired . | . . . . Time . | . . . . Parts Recycled . | . . . . Recycled Matter . | . . . . Retrieved Matter . | . . . . Retrieved Components . | . . . . Parts Scanalyzed . | . . . . Part Schematics Acquired . | . . . . Parts Damaged . | . . . . Bothacking | -11 -10 -9 -9 ------------ Run | Jun Mat Mat Sto Used RIF Installer . | . . . . Robots Hacked . | . . . . Non-combat . | . . . . Combat . | . . . . Robot Hacks Applied . | . . . . Relay Couplers Released . | . . . . Fabnet Peak Effective % . | . . . . Robots Rewired . | . . . . Allies Hacked . | . . . . Hacks Repelled . | . . . . Allies | -11 -10 -9 -9 -------- Run | Jun Mat Mat Sto Total Allies 1 | . . 1 . Largest Group 1 | . . 1 . Highest-Rated Group 10 | . . 10 . Highest-Rated Ally 10 | . . 10 . Total Orders . | . . . . Ally Attacks . | . . . . Total Damage . | . . . . Kills . | . . . . Allies Corrupted . | . . . . Allies Melted . | . . . . Intel | -11 -10 -9 -9 ------- Run | Jun Mat Mat Sto Robot Analysis Total . | . . . . Derelict Logs Recovered . | . . . . Drone Launches . | . . . . Drone Recoveries . | . . . . Exploration | -11 -10 -9 -9 ------------- Run | Jun Mat Mat Sto Turns Passed 672 | 31 453 100 88 Spaces Moved 648 | 27 422 157 42 Core 108 | 27 78 3 . Treads . | . . . . Legs 234 | . 224 . 10 Wheels . | . . . . Hover . | . . . . Flight 306 | . 120 154 32 Fastest Speed 34 | 50 37 34 34 Average Speed 69 | 50 83 39 56 Slowest Speed 200 | 50 120 200 120 Overloaded Moves . | . . . . Propulsion Burnouts . | . . . . Robots Hopped 6 | . . 6 . Cave-ins Triggered . | . . . . Exploration Rate (%) 23 | 4 68 11 12 Regions Visited 3 Branch Regions 1 Pre-discovered Areas . | . . . . Known Exits Taken 2 | . 1 1 . Unknown Exits Taken 1 | 1 . . . Scrap Searched . | . . . . Spaces Dug . | . . . . Terrain Destroyed 109 | . 71 8 30 Melee . | . . . . Projectile . | . . . . AOE 109 | . 71 8 30 Terrain Rammed . | . . . . Walls Destroyed . | . . . . Machines Disabled . | . . . . Actions | -11 -10 -9 -9 --------- Run | Jun Mat Mat Sto Total 800 | 36 503 181 80 Wait 53 | . 19 23 11 Move 633 | 26 421 144 42 Hop 6 | . . 6 . Pick Up 11 | 1 10 . . Fast Attach 16 | 3 11 1 1 Attach 6 | . 3 2 1 Detach 4 | . 4 . . Swap . | . . . . Drop 14 | . 14 . . Fire 57 | 6 21 5 25 Melee . | . . . . Ram . | . . . . Kick . | . . . . Crush . | . . . . Escape Stasis . | . . . . Rewire . | . . . . Trap . | . . . . Miscellaneous . | . . . . Route ------- -11/Junkyard -10/Materials (discovered 4 exits: *Mat x3 / [*Min]) -9/Materials (discovered 3 exits: Min / *Sto x2) -9/Storage History --------- Turn | Location | Event 4 | -11/Junkyard | Discovered new exit (range 16) 32 | -11/Junkyard | Entered Materials 155 | -10/Materials | Identified exit to Materials 307 | -10/Materials | Build established: Mutant 433 | -10/Materials | Discovered new exit (range 14) 485 | -10/Materials | Entered another Materials area 485 | -9/Materials | Evolved 2 slots: Propulsion x1, Utility x1 485 | -9/Materials | Discovered new exit (range 7) 536 | -9/Materials | Identified exit to Mines 536 | -9/Materials | Identified exit to Storage 585 | -9/Materials | Entered Storage 673 | -9/Storage | Core integrity fell below 50% 673 | -9/Storage | Self-destructed Last Messages --------------- 00638_ K-01 Serf cleans the Recycling Unit. 00639_ The unstable cave ceiling collapses. 00640_ Acquired 60 matter. 00641_ K-01 Serf collects debris. 00642_ G-34 Mercenary destroyed. 00643_ Acquired 49 matter. 00644_ K-01 Serf cleans the Recycling Unit. 00646_ The unstable cave ceiling collapses. 00649_ K-01 Serf collects debris. 00650_ Flight Unit destroyed. 00652_ K-01 Serf collects debris. 00661_ Flight Unit destroyed. 00662_ K-01 Serf collects debris. 00663_ The unstable cave ceiling collapses. 00663_ K-01 Serf collects debris. 00670_ The unstable cave ceiling collapses. 00670_ K-01 Serf collects debris. 00671_ G-47 Trooper destroyed. 00671_ U-05 Engineer lays Concrete. 00672_ Critical hit (Burn: +37). Map ----- +----------------------------------------------------+ | | | | | | | | | | | | | | | ?????????????????????????????????????????????????? | | ?????????????????????????????????????????????????? | | ??????????????????????????????#######????????????? | | ??????????????????????????????# ###########??? | | ??????????????????????????????# #??? | | ??????????????????????????????# T #??? | | ??????????????????????????????# #??? | | ?????????????????????????????## ###########??? | | ???????????????????????##???## ####??????????? | | ???????????????????????]]??## #########??? | | ???????????????????????]]??# # #?? | | ?????????????????????##" ??# # """ """ #?? | | ??????????????????????T ??# # """ """????? | | ?????????????????????###+### # """ """ #?? | | ?????????????????????# k = #?? | | ?????????????????????# ![[^ = # #?? | | ??????????????????#### =[%*^u""" #?? | | ??????????????????# [=[[= "Y #############?? | | ??????????????????# ##+##@## """ #????????????? | | ????????????????????# != # #????????????? | | ????????????????????# """" Y #????????????? | | ????????????????????# """" #### #????????????? | | ????????????????????# """" #??# #????????????? | | ????????????????????# """" #??###+###????????????? | | ????????????????????# #?????????????????????? | | ????????????????????### ####?????????????????????? | | ??????????????????????##?????????????????????????? | | ?????????????????????????????????????????????????? | | ?????????????????????????????????????????????????? | | ?????????????????????????????????????????????????? | | ?????????????????????????????????????????????????? | | ?????????????????????????????????????????????????? | | ?????????????????????????????????????????????????? | | ?????????????????????????????????????????????????? | | ?????????????????????????????????????????????????? | | ?????????????????????????????????????????????????? | | ?????????????????????????????????????????????????? | | ?????????????????????????????????????????????????? | | ?????????????????????????????????????????????????? | | ?????????????????????????????????????????????????? | | ?????????????????????????????????????????????????? | | ?????????????????????????????????????????????????? | | ?????????????????????????????????????????????????? | +----------------------------------------------------+ Best States ------------- Heat Dissipation 35 Energy Generation 10 Energy Capacity 250 Matter Stores 210 Matter Capacity 300 Sight Range 18 Terrain Scan Density 10 ECM Strength 1 Additional Mass Support 6 Evasion (%) 63 Item Schematics ----------------- Flight Unit | -10/Materials | Hacked Robot Schematics ------------------ None Fabricated ------------ Nothing Alien Tech Used ----------------- None Achievements -------------- None Challenges ------------ None Game ------ Seed FieldAnalysisHammer Manual? 0 Play Time 00:26:36 Cumulative 118.6 hours Start 2023.04.19 @ 21:06:59 End 2023.04.19 @ 21:41:02 Sessions 1 Manual Loads 0 Difficulty Rogue Special Mode None Game No. 96 Rogue 96 Adventurer 0 Explorer 0 Win Type - Total 1 Types 1/0/0/0/0/0/0/0/0 Lore% 38 Gallery% 53 Achievement% 46 Wizard Run 0 Options --------- ASCII 0 Keyboard 0 Movement Mouse Keybinds 0 Fullscreen 0 Font 20/Cog Map View 183x50 Tactical HUD 1 Map Filters NONE Filters NONE Steam 1 RUN: cc958742-2e8b-4dcd-ba71-6816550ab9a7